Cogmind - Beta 10.1 @@@ ROGUE MODE // 2020.10.15 @ 22:01:06 Player: capybard Result: Destroyed by G-34 Mercenary with Small Laser Performance ------------- Evolutions (0) 0 Regions Visited (2) 400 Robots Destroyed (6) 30 Value Destroyed (61) 61 Prototype IDs (0) 0 Alien Tech Used (0) 0 Bonus (0) 0 TOTAL SCORE: 491 Bonus ------- None Cogmind --------- Core Integrity 0/250 Matter 300/300 Energy 100/100 System Corruption 0% Temperature Cool (6) Movement Core (50) Location -10/Mines Parts ------- > --- POWER (1) -------- (None) > --- PROPULSION (2) --- (None) > --- UTILITY (2) ------ (None) > --- WEAPON (2) ------- (None) > --- INVENTORY (4) ---- Aluminum Leg Aluminum Leg Wheel Small Laser Peak State ------------ > --- POWER ------------ (None) > --- PROPULSION ------- Wheel Wheel > --- UTILITY ---------- (None) > --- WEAPON ----------- EM Pulse Gun Small Laser > --- INVENTORY -------- Aluminum Leg Aluminum Leg [Rating: 4] Favorites ----------- Power None Propulsion Wheel Wheel Wheel Utility None Weapon EM Pulse Gun Energy Gun EM Pulse Gun Build | -11 -10 -10 ------- Run | Scr Mat Min Slots Evolved . | . . . Power . | . . . Propulsion . | . . . Utility . | . . . Weapon . | . . . Parts Attached 4 | 4 . . Power . | . . . Engine . | . . . Core . | . . . Reactor . | . . . Propulsion 2 | 2 . . Treads . | . . . Leg . | . . . Wheel 2 | 2 . . Hover . | . . . Flight . | . . . Utility . | . . . Device . | . . . Storage . | . . . Processor . | . . . Hackware . | . . . Protection . | . . . Artifact . | . . . Weapon 2 | 2 . . Energy Gun 2 | 2 . . Energy Cannon . | . . . Ballistic Gun . | . . . Ballistic Cannon . | . . . Launcher . | . . . Special Weapon . | . . . Impact Weapon . | . . . Slashing Weapon . | . . . Piercing Weapon . | . . . Special Melee Weapon . | . . . Unidentified Prototypes . | . . . Parts Lost 4 | . 2 2 Power . | . . . Propulsion 2 | . . 2 Utility . | . . . Weapon 2 | . 2 . Highest Loss Streak 2 | . 2 2 Average Slot Usage (%) 40 | . 52 24 Wheel 26 | . 28 24 Energy Gun 14 | . 24 . Naked Turns 11 | . . 11 Heaviest Build 3 | 3 3 . Greatest Support 20 | 20 20 20 Greatest Overweight (x) . | . . . Average Overweight (x) . | . . . Largest Inventory Capacity 4 | 4 4 4 Average Capacity 4 | 4 4 4 Most Carried 4 | 4 4 4 Average Carried 3 | 3 4 4 Final Capacity 4 | 4 4 4 Final Carried 4 | 4 4 4 Class Distribution -------------------- 100% | Mutant Dominant Class ---------------- Mutant | -10/Materials Mutant | -10/Mines Resources | -11 -10 -10 ----------- Run | Scr Mat Min Matter Collected 240 | 240 . . Remotely . | . . . Salvage Created 256 | 107 149 . Parts 14 | 8 6 . Haulers Intercepted . | . . . Recyclers Shooed 1 | . 1 . Parts Field Recycled . | . . . Retrieved Matter . | . . . Parts Self-Destructed . | . . . Prevented . | . . . Kills | -11 -10 -10 ------- Run | Scr Mat Min Combat Hostiles Destroyed 1 | 1 . . Guns 1 | 1 . . Classes Destroyed 4 | 3 1 . Worker 1 | 1 . . Tunneler 2 | 2 . . Recycler 2 | . 2 . Grunt 1 | 1 . . Best Kill Streak 3 | 3 2 . Combat Bots Only 1 | 1 . . Max Kills in Single Turn 1 | 1 1 . Gunslinging . | . . . Exploded . | . . . Melee . | . . . Uniques/NPCs Destroyed . | . . . Combat | -11 -10 -10 -------- Run | Scr Mat Min Damage Taken 438 | 32 207 199 Core 251 | . 81 170 Absorbed by Shields . | . . . Core Remaining (%) 100 | 100 . . Volleys Fired 18 | 9 9 . Largest 2 | 2 2 . Hottest 80 | 80 80 . Shots Fired 36 | 18 18 . Gun 36 | 18 18 . Cannon . | . . . Launcher . | . . . Special . | . . . Kinetic . | . . . Thermal 18 | 9 9 . Explosive . | . . . Electromagnetic 18 | 9 9 . Robot Hit Streak 4 | 4 4 . Robot Miss Streak 2 | 2 2 . Penetration Max . | . . . Secondary Targets . | . . . Shots Hit Robots 15 | 11 4 . Core Hits 9 | 5 4 . Critical Hits . | . . . Critical Kills . | . . . Critical Parts Destroyed . | . . . Melee Attacks . | . . . Impact . | . . . Slashing . | . . . Piercing . | . . . Sneak Attacks . | . . . Combat Hostiles . | . . . Follow-up Attacks . | . . . Damage Inflicted 194 | 112 82 . Guns 179 | 112 67 . Cannons . | . . . Explosions . | . . . Melee . | . . . Ramming 15 | . 15 . Kinetic . | . . . Thermal 55 | 31 24 . Explosive . | . . . Electromagnetic 124 | 81 43 . Impact . | . . . Slashing . | . . . Piercing . | . . . Highest Corruption . | . . . Average Corruption . | . . . Corruption Purged . | . . . Overload Shots . | . . . Overflow Damage . | . . . Projectiles . | . . . Explosions . | . . . Melee . | . . . Knockbacks . | . . . Impact . | . . . Kinetic . | . . . Secondary . | . . . Self-Inflicted Damage 7 | . 7 . Shots . | . . . Rammed 3 | . 3 . Targets Rammed 3 | . 3 . Kicked . | . . . Crushed . | . . . Highest Temperature 24 | 24 24 . Average Temperature 7 | 10 5 . Received Heat Transfer 240 | 18 108 114 Siege Activations . | . . . Robots Corrupted . | . . . Combat Hostiles . | . . . Parts Fried . | . . . Impact Corruptions . | . . . Robots Melted . | . . . Combat Hostiles . | . . . Parts Melted . | . . . Heat Transferred 125 | 75 50 . Parts Sabotaged . | . . . Parts Stolen . | . . . Parts Stripped . | . . . Power Chain Reactions . | . . . Missiles Intercepted . | . . . Alert | -11 -10 -10 ------- Run | Scr Mat Min Peak Influence 47 | 35 47 10 Initial 22 | . 22 10 Average 23 | 22 35 8 Maximum Alert Level . | . . . Low Security (%) 100 | 100 100 100 Level 1 . | . . . Level 2 . | . . . Level 3 . | . . . Level 4 . | . . . Level 5 . | . . . High Security . | . . . Max Security . | . . . Squads Dispatched 1 | . 1 . Investigation . | . . . Extermination . | . . . Reinforcement 1 | . 1 . Assault . | . . . Garrison . | . . . Intercept . | . . . Construction Impeded . | . . . Haulers Reinforced . | . . . Stealth | -11 -10 -10 --------- Run | Scr Mat Min Distress Signals 1 | . 1 . Communications Jammed . | . . . Distress Signals . | . . . Times Spotted 10 | 1 7 2 Peak Tracking Total 6 | 1 6 2 Tactical Retreats 1 | . 1 . Traps | -11 -10 -10 ------- Run | Scr Mat Min Traps Triggered . | . . . Indirectly . | . . . Trap Hack Attempts . | . . . Triggered . | . . . Disarmed . | . . . Reprogrammed . | . . . Reused . | . . . Traps Extracted . | . . . Installed . | . . . Triggered . | . . . Machines | -11 -10 -10 ---------- Run | Scr Mat Min Machines Disabled . | . . . Max in Single Turn . | . . . Machines Sabotaged . | . . . Garrisons Compromised . | . . . Overloaded Fab Kills . | . . . Fab Network Shutdowns . | . . . Hacking | -11 -10 -10 --------- Run | Scr Mat Min Machines Accessed . | . . . Terminals . | . . . Fabricators . | . . . Repair Stations . | . . . Recycling Units . | . . . Scanalyzers . | . . . Garrison Access . | . . . Total Hacks . | . . . Successful . | . . . Failed . | . . . Catastrophic . | . . . Database Lockouts . | . . . Manual . | . . . Terminals . | . . . Fabricators . | . . . Repair Stations . | . . . Recycling Units . | . . . Scanalyzers . | . . . Garrison Access . | . . . Terminal Hacks . | . . . Fabricator Hacks . | . . . Repair Station Hacks . | . . . Recycling Unit Hacks . | . . . Scanalyzer . | . . . Garrison Access Hacks . | . . . Unauthorized Hacks . | . . . Terminals . | . . . Fabricators . | . . . Repair Stations . | . . . Recycling Units . | . . . Scanalyzers . | . . . Garrison Access . | . . . Data Cores Recovered . | . . . Used . | . . . Hacking Detections . | . . . Full Trace Events . | . . . Feedback Events . | . . . Feedback Blocked . | . . . Robot Schematics Acquired . | . . . Robots Built . | . . . Matter . | . . . Time . | . . . Total Robot Build Rating . | . . . Part Schematics Acquired . | . . . Parts Built . | . . . Matter . | . . . Time . | . . . Total Part Build Rating . | . . . Parts Repaired . | . . . Time . | . . . Parts Recycled . | . . . Recycled Matter . | . . . Retrieved Matter . | . . . Retrieved Components . | . . . Parts Scanalyzed . | . . . Part Schematics Acquired . | . . . Parts Damaged . | . . . Bothacking | -11 -10 -10 ------------ Run | Scr Mat Min Used RIF Installer . | . . . Robots Hacked . | . . . Non-combat . | . . . Combat . | . . . Robot Hacks Applied . | . . . Relay Couplers Released . | . . . Robots Rewired . | . . . Allies Hacked . | . . . Hacks Repelled . | . . . Allies | -11 -10 -10 -------- Run | Scr Mat Min Total Allies . | . . . Largest Group . | . . . Highest-Rated Group . | . . . Highest-Rated Ally . | . . . Total Orders . | . . . Ally Attacks . | . . . Total Damage . | . . . Kills . | . . . Allies Corrupted . | . . . Allies Melted . | . . . Intel | -11 -10 -10 ------- Run | Scr Mat Min Robot Analysis Total . | . . . Derelict Logs Recovered . | . . . Drone Launches . | . . . Drone Recoveries . | . . . Exploration | -11 -10 -10 ------------- Run | Scr Mat Min Turns Passed 427 | 236 109 82 Spaces Moved 299 | 108 99 92 Core 34 | 31 . 3 Treads . | . . . Legs . | . . . Wheels 265 | 77 99 89 Hover . | . . . Flight . | . . . Fastest Speed 50 | 50 80 50 Average Speed 76 | 71 80 79 Slowest Speed 80 | 80 80 80 Overloaded Moves . | . . . Propulsion Burnouts . | . . . Robots Hopped . | . . . Cave-ins Triggered . | . . . Exploration Rate (%) 21 | 10 24 29 Regions Visited 2 Branch Regions 1 Pre-discovered Areas . | . . . Known Exits Taken . | . . . Unknown Exits Taken 2 | 1 1 . Scrap Searched 1 | . . 1 Spaces Dug . | . . . Terrain Destroyed . | . . . Melee . | . . . Projectile . | . . . AOE . | . . . Terrain Rammed . | . . . Walls Destroyed . | . . . Machines Disabled . | . . . Actions | -11 -10 -10 --------- Run | Scr Mat Min Total 459 | 248 110 101 Wait 129 | 120 . 9 Move 297 | 107 98 92 Hop . | . . . Pick Up 8 | 8 . . Fast Attach . | . . . Attach 4 | 4 . . Detach . | . . . Swap . | . . . Drop . | . . . Fire 18 | 9 9 . Melee . | . . . Ram 3 | . 3 . Kick . | . . . Crush . | . . . Escape Stasis . | . . . Rewire . | . . . Trap . | . . . Miscellaneous . | . . . Route ------- -11/Scrapyard -10/Materials -10/Mines History --------- Turn | Location | Event 2 | -11/Scrapyard | Met Revision 17 73 | -11/Scrapyard | Discovered new exit (range 8) 237 | -11/Scrapyard | Entered Materials 291 | -10/Materials | Discovered new exit (range 13) 314 | -10/Materials | Build established: Mutant 346 | -10/Materials | Entered Mines 420 | -10/Mines | Core integrity fell below 50% 426 | -10/Mines | Core integrity fell below 20% 428 | -10/Mines | Destroyed by G-34 Mercenary with Small Laser Last Messages --------------- O-16 Technician: "IFF HANDSHAKE FAILED. SECURING TERMINAL." ALERT: Hostiles spotted, dispatching reinforcements to Terminal M003. EXIT=FOUND U-05 Engineer lays Concrete. Slammed into U-05 Engineer. Sml. Laser destroyed. K-01 Serf collects debris. R-06 Scavenger collects Com. Wheel. K-01 Serf collects debris. Slammed into K-01 Serf. U-05 Engineer destroyed. EM Pulse Gun destroyed. LOCATION=UNKNOWN GOAL=ESCAPE Something is scanning the area. Searching scrap... Found Structural Scanner. Found Hover Unit. Found 25 Matter. Wheel destroyed. Map ----- +----------------------------------------------------+ | ?????????????????????????????????# #?????## % | | ???????????????????????????####### ######## ! | | ???????????????????????????# # | | ???????????????????????????# ## | | ???????????????????????????# ############ ##? | | ???????????????????????????# #??????????# ##?? | | ???????????????????????????# #??????????# ###??? | | ?????????????????????#?????# #??????????# #????? | | ?????????????????????# ##### #??????????# #????? | | ?????????????????????# ####???????# #????? | | ?????????????????????# #???????# #????? | | ?????????????????????##### #???????# #????? | | ?????????????????????????# ##??????? #????? | | ???????????????????###???## ##???????? ###????? | | ???????????????????# #???### #????????? ???????? | | ???????????????????# ###??# #????????# ???????? | | ???????????????????# ### ########## ???????? | | ????????????????#### ## ##????????? | | ????????????????? ########### #?????????? | | ?????????????????? #????????# #?????????? | | ???????????????????# ?????????# #?????????? | | ???????????????????# ?????????# #?????????? | | ????????????????????# #??####???# #?????????? | | ?????????????????????# #?## ##### #?????????? | | ??????????????????????# ### #?????????? | | ??????????????????????# @ #?????????? | | ??????????????????????# ######?????????? | | ?????????????????????#ugg #??????????????? | | ????????????????????#t ##??????????????? | | ?????????????????? ##???????????????? | | ???????????????? t ##????????????????? | | ??????????????? ##### ????????????????? | | ???????????????????# """ ???????????????? | | ???????????????????# """ ### ??????????????? | | ???????????????????## """ #??? ?????????????? | | ????????????????????# #????#????????????? | | ????????????????????# ? #?????????????????? | | ????????????????????## ?????????????????? | | ?????????????????????# ? ?????????????????? | | ?????????????????????# ? #?????????????????? | | ??????????????????????? ? #??????????????????? | | ?????????????????????????????????????????????????? | | ?????????????????????????????????????????????????? | | ?????????????????????????????????????????????????? | | ?????????????????????????????????????????????????? | | ?????????????????????????????????????????????????? | | ?????????????????????????????????????????????????? | | ?????????????????????????????????????????????????? | | ?????????????????????????????????????????????????? | | ?????????????????????????????????????????????????? | +----------------------------------------------------+ Best States ------------- Heat Dissipation 25 Energy Generation 5 Energy Capacity 100 Matter Stores 300 Matter Capacity 300 Sight Range 16 Terrain Scan Density 10 Evasion (%) 50 Item Schematics ----------------- None Robot Schematics ------------------ None Fabricated ------------ Nothing Alien Tech Used ----------------- None Achievements -------------- None Challenges ------------ None Game ------ Seed RefinerySniperEdition Manual? 0 Play Time 00:05:00 Cumulative 0.1 hours Start 2020.10.15 @ 21:55:42 End 2020.10.15 @ 22:01:06 Sessions 1 Manual Loads 0 Difficulty Rogue Special Mode None Game No. 2 Rogue 2 Adventurer 0 Explorer 0 Win Type - Total 0 Types 0/0/0/0/0/0/0/0/0 Lore% 0 Gallery% 1 Achievement% 0 Wizard Run 0 Options --------- ASCII 0 Keyboard 0 Movement Numpad Keybinds 0 Fullscreen 1 Font 18/TerminusBold Map View 76x50 Tactical HUD 0 Map Filters NONE Filters NONE Steam 1 RUN: f32f5939-df75-4e90-844f-027ae604962d